bitfinex-derivatives/quotes_BNBF0:USTF0_20250609
["timestamp","ask_amount","ask_price","bid_price","bid_amount"]
[1749505266546,2.66575578,665.46,664.64,0.30091478]
[1749505267243,1.1672439,665.45,664.64,0.30091478]
[1749505267444,2.22000463,665.45,664.64,0.30091478]
[1749505268145,1.05275578,665.45,664.64,0.30091478]
[1749505268344,3.83095564,665.46,664.64,0.30091478]
[1749505268544,1.05275578,665.45,664.64,0.30091478]
[1749505268748,2.66575578,665.46,664.64,0.30091478]
[1749505268945,1.16508407,665.45,664.64,0.30091478]
[1749505269143,2.21783383,665.45,664.64,0.30091478]
[1749505269851,2.14762662,665.44,664.64,0.30091478]
[1749505270046,2.21752158,665.43,664.64,0.30091478]
[1749505270247,1.05275578,665.43,664.64,0.30091478]
[1749505270547,2.14762478,665.45,664.64,0.30091478]
[1749505270748,2.21751801,665.44,664.64,0.30091478]
[1749505270948,1.05275578,665.43,664.64,0.30091478]
[1749505271148,1.581,665.43,664.64,0.30091478]
[1749505271352,1.05275578,665.42,663.74,2.21362191]
[1749505271549,1.05275578,665.41,664.26,0.2616925]
[1749505271848,1.05275578,665.4,663.78,2.21362191]
[1749505272051,1.05275578,665.39,664.26,0.26175549]
[1749505272349,1.05275578,665.38,663.8,0.30129557]
[1749505272553,1.05275578,665.37,664.25,0.26175648]
[1749505272753,1.05275578,665.36,664.25,0.26175648]
[1749505272951,1.05275578,665.35,664.25,0.26175648]
[1749505273148,1.05275578,665.34,664.25,0.26175648]
[1749505273352,1.05275578,665.33,664.25,0.26175648]
[1749505273649,1.05275578,665.32,664.25,0.26175648]
[1749505273851,1.05275578,665.31,664.25,0.26175648]
[1749505274056,1.04810588,665.31,664.25,0.26175648]
[1749505274353,3.19238761,665.31,664.25,0.26175648]
[1749505274555,3.19238761,665.3,664.25,0.26175648]
[1749505274854,1.04810588,665.29,664.25,0.26175648]
[1749505275053,1.3,665.32,664.25,0.26175648]
[1749505275054,3.19239729,665.31,664.25,0.26175648]
[1749505275250,2.02837529,665.3,664.25,0.26175648]
[1749505275549,2.21206328,665.29,664.25,0.26175648]
[1749505275749,2.21206328,665.28,664.25,0.26175648]
[1749505275952,3.1933884,665.27,664.25,0.26175648]
[1749505276153,3.1933884,665.26,664.25,0.26175648]
[1749505276352,2.21206328,665.25,664.25,0.26175648]
[1749505276553,1.04810588,665.24,664.25,0.26175648]
[1749505276755,2.0294301,665.31,664.25,0.26175648]
[1749505277050,2.14569158,665.3,664.25,0.26175648]
[1749505277255,1.04810588,665.29,664.25,0.26175648]
[1749505277453,2.0294288,665.29,664.25,0.26175648]
[1749505277654,3.19379485,665.28,664.25,0.26175648]
[1749505277854,2.21067169,665.27,664.25,0.26175648]
[1749505278059,3.19163908,665.26,664.25,0.26175648]
[1749505278261,2.21067301,665.25,664.25,0.26175648]
[1749505278458,2.2147932,665.24,664.25,0.26175648]
[1749505278759,1.04810588,665.23,664.25,0.26175648]
[1749505278956,2.02904768,665.31,664.25,0.26175648]
[1749505279157,1.16666703,665.3,664.25,0.26175648]
[1749505279357,1.04810588,665.31,664.26,0.30108692]
[1749505279560,3.19571925,665.31,664.26,0.30108692]
[1749505279760,2.21477291,665.3,664.26,0.30108692]
[1749505280056,2.21330683,665.29,664.26,0.30108692]
[1749505280258,1.3,665.32,664.26,0.30108692]
[1749505280259,1.04810588,665.28,664.26,0.30108692]
[1749505280458,3.19460695,665.31,664.26,0.30108692]
[1749505280757,0.991,665.27,664.26,0.30108692]
[1749505281460,2.03910588,665.27,664.26,0.30108692]
[1749505281762,1.04810588,665.26,664.26,0.30108692]
[1749505282063,0.991,665.27,664.26,0.30108692]
[1749505283663,2.03910588,665.27,664.26,0.30108692]
[1749505283962,1.04810588,665.26,664.26,0.30108692]
[1749505284358,0.991,665.27,664.26,0.30108692]
[1749505285263,2.03910588,665.27,664.26,0.30108692]
[1749505285560,1.04810588,665.26,664.26,0.30108692]
[1749505286160,0.991,665.27,664.26,0.30108692]
[1749505289268,1.568,665.26,664.26,0.30108692]
[1749505289770,2.61610588,665.26,664.26,0.30108692]
[1749505290466,1.311,665.25,664.26,0.30108692]
[1749505290666,2.35910588,665.25,664.26,0.30108692]
[1749505295273,0.992,665.24,664.26,0.30108692]
[1749505295469,2.04010588,665.24,664.26,0.30108692]
[1749505296072,2.215,665.23,664.26,0.30108692]
[1749505296269,1.04810588,665.22,664.26,0.30108692]
[1749505298974,2.215,665.23,664.26,0.30108692]
[1749505305080,1.456,665.22,664.26,0.30108692]
[1749505307482,1.399,665.21,664.26,0.30108692]
[1749505308580,2.44651889,665.21,664.26,0.30108692]
[1749505314192,2.46029852,665.2,664.26,0.30108692]
[1749505314393,1.04751889,665.19,664.26,0.30108692]
[1749505314589,2.33651889,665.2,664.26,0.30108692]
[1749505314794,1.517,665.18,664.26,0.30108692]
[1749505315192,2.68830791,665.18,664.26,0.30108692]
[1749505315389,1.04751889,665.17,664.26,0.30108692]
[1749505315592,1.517,665.18,664.26,0.30108692]
[1749505320300,2.56451889,665.18,664.26,0.30108692]
[1749505320503,2.2160921,665.17,664.26,0.30108692]
[1749505321302,1.11630892,665.13,663.15,3.68287609]
[1749505321597,1.11630892,665.09,663.89,0.26182048]
[1749505321797,2.16382781,665.08,663.28,3.68287609]
[1749505322007,2.5191124,665.07,663.89,0.26192492]
[1749505322198,1.11630892,665.03,663.3,0.30152268]
[1749505322396,1.11630892,664.97,663.3,0.30152268]
[1749505322698,2.16382781,664.96,663.86,0.26191999]
[1749505322899,3.68896352,664.95,663.43,3.68287609]
[1749505323197,2.03055127,664.94,663.86,0.26191802]
[1749505323395,2.51951802,664.93,663.86,0.26191802]
[1749505323598,3.68934103,664.92,663.86,0.26191802]
[1749505323899,3.68934103,664.91,663.86,0.26191802]
[1749505324101,3.20060669,664.9,663.86,0.26191802]
[1749505324304,2.03078393,664.89,663.86,0.26191802]
[1749505324499,3.20000225,664.88,663.86,0.26191802]
[1749505324700,1.04751889,664.87,663.86,0.26191802]
[1749505324899,3.202029,664.9,663.86,0.26191802]
[1749505325101,1.53611656,664.89,663.86,0.26191802]
[1749505325301,2.70773957,664.9,663.86,0.26191802]
[1749505325605,1.17162621,664.89,663.86,0.26191802]
[1749505325905,2.03039974,664.9,663.86,0.26191802]
[1749505326101,2.15449872,664.89,663.86,0.26191802]
[1749505326305,2.03039858,664.88,663.86,0.26191802]
[1749505326601,2.1541666,664.87,663.86,0.26191802]
[1749505326800,1.04751889,664.86,663.86,0.26191802]
[1749505327005,2.51879543,664.9,663.86,0.26191802]
[1749505327202,2.64271172,664.89,663.86,0.26191802]
[1749505327406,3.20167859,664.88,663.86,0.26191802]
[1749505327701,3.20167859,664.87,663.86,0.26191802]
[1749505327904,2.21895022,664.86,663.86,0.26191802]
[1749505328105,2.21895022,664.85,663.86,0.26191802]
[1749505328313,2.21796828,664.84,663.86,0.26191802]
[1749505328503,2.21796999,664.83,663.86,0.26191802]
[1749505328707,1.04751889,664.82,663.86,0.26191802]
[1749505328906,1.04751889,664.9,663.86,0.26191802]
[1749505329105,2.02845017,664.9,663.86,0.26191802]
[1749505329303,2.15138238,664.89,663.86,0.26191802]
[1749505329509,1.04751889,664.88,663.86,0.26191802]
[1749505329707,2.21796999,664.88,663.86,0.26191802]
[1749505330009,1.04751889,664.87,663.86,0.26191802]
[1749505330209,1.04751889,664.9,663.86,0.26191802]
[1749505330607,0.992,664.91,663.86,0.26191802]
[1749505333007,3.20716132,664.91,663.86,0.26191802]
[1749505333212,2.21516132,664.9,663.86,0.26191802]
[1749505333511,1.04751889,664.9,663.86,0.26191802]
[1749505333910,0.992,664.91,663.86,0.26191802]
[1749505338114,3.20919216,664.91,663.86,0.26191802]
[1749505338417,1.04751889,664.9,663.86,0.26191802]
[1749505339014,1.68,664.89,663.86,0.26191802]
[1749505339414,3.89719371,664.89,663.86,0.26191802]
[1749505339614,2.21719371,664.88,663.86,0.26191802]
[1749505340018,1.04751889,664.88,663.86,0.26191802]
[1749505340719,1.68,664.89,663.86,0.26191802]
[1749505341014,1.673,664.87,663.86,0.26191802]
[1749505342818,1.673,664.87,663.87,2.21480554]
[1749505343324,2.244,664.86,663.87,2.21480554]
[1749505343518,2.244,664.86,663.87,0.3012638]
[1749505343817,2.244,664.86,663.88,0.30125926]
[1749505344123,1.538,664.85,663.88,0.30125926]
[1749505350125,1.327,664.84,663.88,0.30125926]
[1749505351824,0.993,664.83,663.88,0.30125926]
[1749505354431,1.503,664.82,663.88,0.30125926]
[1749505362331,1.423,664.81,663.88,0.30125926]
[1749505365737,1.301,664.8,663.88,0.30125926]
[1749505373843,1.614,664.79,663.88,0.30125926]
[1749505384244,0.993,664.78,663.88,0.30125926]
[1749505386145,1.234,664.77,663.88,0.30125926]
[1749505386952,1.377,664.76,663.88,3.98413535]
[1749505387450,1.377,664.76,663.88,0.30125926]
[1749505388752,1.377,664.76,663.89,3.68287609]
[1749505388952,1.377,664.76,663.91,0.30124565]
[1749505390055,1.264,664.75,663.92,3.68287609]
[1749505390250,1.264,664.75,663.94,0.30123203]
[1749505391556,1.579,664.74,663.94,0.30123203]
[1749505406265,1.568,664.73,663.94,0.30123203]
[1749505408466,1.917,664.72,663.94,0.30123203]
[1749505408667,1.917,664.72,664.22,2.22432112]
[1749505409569,1.917,664.72,664.21,2.22432112]
[1749505412670,0.993,664.71,664.2,2.22432112]
[1749505413371,0.993,664.71,664.19,2.22432112]
[1749505415168,0.993,664.71,664.17,2.22432112]
[1749505415671,0.993,664.71,664.13,2.22432112]
[1749505416471,0.993,664.71,664.12,2.22432112]
[1749505416670,0.993,664.71,664.11,2.22432112]
[1749505417373,0.993,664.71,664.12,2.22432112]
[1749505417874,1.18,664.7,664.12,2.22432112]
[1749505418372,1.88,664.69,664.12,2.22432112]
[1749505419675,1.88,664.69,664.11,2.22432112]
[1749505421979,1.88,664.69,664.02,2.22432112]
[1749505424383,1.88,664.69,664.03,2.22432112]
[1749505424680,1.88,664.69,664.02,2.22432112]
[1749505425584,1.88,664.69,664.04,2.22432112]
[1749505426181,1.88,664.69,664.05,2.22432112]
[1749505426881,1.88,664.69,664.04,2.22432112]
[1749505427481,1.88,664.69,664.05,2.22432112]
[1749505429686,1.88,664.69,663.98,2.22432112]
[1749505429981,0.993,664.68,663.98,2.22432112]
[1749505430693,0.993,664.68,663.96,2.22432112]
[1749505431088,0.993,664.68,663.95,2.22432112]
[1749505431387,0.993,664.68,663.96,2.22432112]
[1749505431591,0.993,664.68,663.95,2.22432112]
[1749505431786,0.993,664.68,663.98,2.22432112]
[1749505433588,0.993,664.68,663.99,2.22432112]
[1749505434282,0.993,664.68,663.94,0.30123203]
[1749505436585,1.711,664.67,663.94,0.30123203]
[1749505438089,1.827,664.66,663.94,0.30123203]
[1749505438791,1.903,664.65,663.94,0.30123203]
[1749505439592,1.903,664.65,663.96,2.22432112]
[1749505440190,1.903,664.65,663.94,0.30123203]
[1749505440593,1.05385161,664.64,663.94,0.30123203]
[1749505442793,1.903,664.65,663.94,0.30123203]
[1749505446401,1.849,664.64,663.94,0.30123203]
[1749505451704,1.05750674,664.63,663.94,0.30123203]
[1749505452104,1.849,664.64,663.94,0.30123203]
[1749505461513,0.994,664.63,663.94,0.30123203]
[1749505463712,1.625,664.62,663.94,0.30123203]
[1749505463913,3.44,664.62,663.94,0.30123203]
[1749505469416,1.383,664.61,663.94,0.30123203]
[1749505473817,1.835,664.6,663.94,0.30123203]
[1749505478319,1.504,664.59,663.94,0.30123203]
[1749505486622,1.844,664.58,663.94,0.30123203]
[1749505490227,0.994,664.57,663.94,0.30123203]
[1749505494426,2.205,664.56,663.94,0.30123203]
[1749505495228,1.532,664.55,663.94,0.30123203]
[1749505500336,1.605,664.54,663.94,0.30123203]
[1749505504142,0.994,664.53,663.94,0.30123203]
[1749505505640,1.39,664.52,663.94,0.30123203]
[1749505507941,1.39,664.52,664.2,2.23193001]
[1749505509252,1.39,664.52,664.19,2.23193001]
[1749505509647,1.39,664.52,664.2,2.23193001]
[1749505510857,1.39,664.52,663.94,0.30123203]
[1749505523367,1.453,664.51,663.94,0.56310374]
[1749505524571,1.453,664.51,664.38,2.22653437]
[1749505525070,1.453,664.51,664.36,2.22653437]
[1749505525367,1.453,664.51,664.34,2.22653437]
[1749505525571,1.453,664.51,664.35,2.22653437]
[1749505526367,1.453,664.51,664.32,2.22653437]
[1749505527472,1.453,664.51,664.31,2.22653437]
[1749505527671,1.453,664.51,664.3,2.22653437]
[1749505528272,1.453,664.51,664.29,2.22653437]
[1749505528668,1.453,664.51,664.3,2.22653437]
[1749505528871,1.453,664.51,664.32,2.22653437]
[1749505529268,1.453,664.51,664.31,2.22653437]
[1749505530270,1.453,664.51,664.29,2.22653437]
[1749505531370,1.453,664.51,664.27,2.22653437]
[1749505532172,1.453,664.51,664.26,2.22653437]
[1749505532475,1.453,664.51,664.25,2.22653437]
[1749505533372,1.453,664.51,663.94,0.56310374]
[1749505533373,1.453,664.51,664.24,2.22653437]
[1749505533675,1.453,664.51,664.28,2.22653437]
[1749505534271,1.453,664.51,663.94,0.56310374]
[1749505534272,1.453,664.51,664.27,2.22653437]
[1749505534571,1.39,664.52,664.27,2.22653437]
[1749505534872,1.39,664.52,664.29,2.22653437]
[1749505535376,1.39,664.52,664.28,2.22653437]
[1749505535875,3.184,664.54,664.28,2.22653437]
[1749505536075,3.184,664.54,664.32,2.22653437]
[1749505536274,3.184,664.54,664.31,2.22653437]
[1749505537376,3.184,664.54,664.3,2.22653437]
[1749505538277,3.184,664.54,664.29,2.22653437]
[1749505538773,3.184,664.54,664.3,2.22653437]
[1749505538972,1.605,664.54,664.3,2.22653437]
[1749505539376,1.605,664.54,663.94,0.56310374]
[1749505539377,1.605,664.54,664.29,2.22653437]
[1749505539573,1.129,664.53,664.3,2.22653437]
[1749505540071,1.129,664.53,663.94,0.56310374]
[1749505540072,1.129,664.53,664.29,2.22653437]
[1749505540472,1.129,664.53,664.28,2.22653437]
[1749505540773,1.129,664.53,663.94,0.56310374]
[1749505540774,1.129,664.53,664.29,2.22653437]
[1749505541173,1.639,664.52,664.27,2.22653437]
[1749505541673,1.639,664.52,664.12,2.22653437]
[1749505541879,1.639,664.52,664.13,0.30114585]
[1749505542378,2.192,664.51,664.13,0.30114585]
[1749505542878,2.192,664.51,664.13,2.52768022]
[1749505543374,2.192,664.51,664.13,0.30114585]
[1749505543881,1.552,664.5,664.13,0.30114585]
[1749505549683,0.994,664.49,664.13,0.30114585]
[1749505551485,0.994,664.49,664.14,2.22653437]
[1749505551685,0.994,664.49,664.15,0.30113679]
[1749505555385,0.994,664.49,664.15,2.52767116]
[1749505556381,0.994,664.49,664.16,2.22653437]
[1749505556585,0.994,664.49,664.17,0.30112772]
[1749505557380,1.158,664.48,664.17,0.30112772]
[1749505566286,1.158,664.48,664.17,2.52766209]
[1749505566890,1.158,664.48,664.17,0.30112772]
[1749505567190,1.158,664.48,664.17,2.52766209]
[1749505568290,1.158,664.48,664.18,2.22653437]
[1749505569292,1.158,664.48,664.19,2.22653437]
[1749505569895,1.158,664.48,664.2,2.22653437]
[1749505571498,1.158,664.48,664.27,2.22653437]
[1749505572099,1.158,664.48,664.22,2.22653437]
[1749505572298,1.158,664.48,664.23,2.22653437]
[1749505572696,1.158,664.48,664.2,2.22653437]
[1749505572897,1.158,664.48,664.18,2.22653437]
[1749505573598,1.158,664.48,664.19,2.22653437]
[1749505574199,1.158,664.48,664.2,2.22653437]
[1749505574599,1.639,664.52,664.19,2.22653437]
[1749505574901,1.639,664.52,664.21,2.22653437]
[1749505575799,1.639,664.52,664.2,2.22653437]
[1749505576298,1.639,664.52,664.22,2.22653437]
[1749505578201,1.891,664.88,664.23,2.22653437]
[1749505578606,1.115,664.87,664.23,2.22653437]
[1749505579206,1.115,664.87,664.24,2.22653437]
[1749505579408,1.115,664.87,664.23,2.22653437]
[1749505579706,1.115,664.87,664.24,2.22653437]
[1749505581408,1.115,664.87,664.25,2.22653437]
[1749505581604,1.115,664.87,664.26,2.22653437]
[1749505581804,1.115,664.87,664.32,2.22653437]
[1749505582809,1.115,664.87,664.31,2.22653437]
[1749505584915,1.115,664.87,664.27,2.22653437]
[1749505587518,1.115,664.87,664.25,2.22653437]
[1749505588116,1.115,664.87,664.24,2.22653437]
[1749505588412,1.115,664.87,664.25,2.22653437]
[1749505589313,1.115,664.87,664.24,2.22653437]
[1749505589512,1.115,664.87,664.25,2.22653437]
[1749505590417,1.115,664.87,664.24,2.22653437]
[1749505590714,1.115,664.87,664.2,2.22653437]
[1749505591314,1.115,664.87,664.21,2.22653437]
[1749505591619,1.306,664.86,664.21,2.22653437]
[1749505592315,1.306,664.86,664.2,2.22653437]
[1749505593418,1.306,664.86,664.17,0.30112772]
[1749505600220,2.35400217,664.86,664.17,0.30112772]
[1749505600524,1.04806313,664.85,664.17,0.30112772]
[1749505600720,2.35406313,664.86,664.17,0.30112772]
[1749505603226,2.35406313,664.86,664.17,2.52766209]
[1749505604022,2.35406313,664.86,664.17,0.30112772]
[1749505604225,2.35406313,664.86,664.17,2.52766209]
[1749505604425,2.35406313,664.86,664.17,0.30112772]
[1749505604626,2.35406313,664.86,664.17,2.52766209]
[1749505606625,2.35406313,664.86,664.17,0.30112772]
[1749505606822,2.35406313,664.86,664.18,2.22653437]
[1749505607324,2.35406313,664.86,664.19,2.22653437]
[1749505607721,1.04806313,664.85,664.19,2.22653437]
[1749505608026,1.04806313,664.84,664.17,0.30112772]
[1749505608226,1.04806313,664.83,664.17,0.30112772]
[1749505608523,1.04806313,664.82,664.17,0.30112772]
[1749505608825,1.04806313,664.81,664.17,0.30112772]
[1749505609122,1.04806313,664.8,664.17,0.30112772]
[1749505609426,1.04806313,664.79,664.17,0.30112772]
[1749505609622,1.04806313,664.85,664.17,0.30112772]
[1749505609823,1.04806313,664.84,664.17,0.30112772]
[1749505610021,1.04806313,664.83,664.17,0.30112772]
[1749505610224,1.04806313,664.82,664.17,0.30112772]
[1749505610429,1.04806313,664.81,664.17,0.30112772]
[1749505610625,1.04806313,664.8,664.17,0.30112772]
[1749505610825,1.04806313,664.79,664.17,0.30112772]
[1749505612929,1.724,664.8,664.17,0.30112772]
[1749505613129,1.04806313,664.79,664.17,0.30112772]
[1749505613329,1.724,664.8,664.17,0.30112772]
[1749505614129,2.77206313,664.8,664.17,0.30112772]
[1749505614333,1.04806313,664.79,664.17,0.30112772]
[1749505614535,1.724,664.8,664.17,0.30112772]
[1749505615632,2.77206313,664.8,664.17,0.30112772]
[1749505615834,1.04806313,664.79,664.17,0.30112772]
[1749505616134,1.724,664.8,664.17,0.30112772]
[1749505616334,1.04806313,664.79,664.17,0.30112772]
[1749505617629,1.724,664.8,664.17,0.30112772]
[1749505618834,2.77206313,664.8,664.17,0.30112772]
[1749505619138,1.04806313,664.79,664.17,0.30112772]
[1749505619638,1.724,664.8,664.17,0.30112772]
[1749505621338,2.77206313,664.8,664.17,0.30112772]
[1749505621541,1.04806313,664.79,664.17,0.30112772]
[1749505621939,1.724,664.8,664.17,0.30112772]
[1749505622840,2.77206313,664.8,664.17,0.30112772]
[1749505623043,1.18052753,664.79,664.17,0.30112772]
[1749505623244,1.04806313,664.79,664.17,0.30112772]
[1749505623440,2.22836564,664.79,664.17,0.30112772]
[1749505623745,2.22836554,664.78,664.17,0.30112772]
[1749505623945,1.04806313,664.77,664.17,0.30112772]
[1749505624246,2.22836948,664.79,664.17,0.30112772]
[1749505624645,1.04806313,664.79,664.17,0.30112772]
[1749505624845,1.435,664.78,664.17,0.30112772]
[1749505627344,1.435,664.78,664.06,2.22653437]
[1749505627542,3.66291049,664.78,664.06,2.22653437]
[1749505627742,1.04806313,664.77,664.05,2.22653437]
[1749505627945,1.04806313,664.77,664.06,2.22653437]
[1749505628143,0.994,664.77,664.06,2.22653437]
[1749505628548,2.04206313,664.77,664.06,2.22653437]
[1749505630348,2.04206313,664.77,664.09,2.22653437]
[1749505631645,2.04206313,664.77,664.07,2.22653437]
[1749505632347,2.056,664.76,664.08,2.22653437]
[1749505632550,2.056,664.76,664.07,2.22653437]
[1749505632551,1.04806313,664.75,664.07,2.22653437]
[1749505632849,1.04806313,664.75,664.11,2.22653437]
[1749505634950,2.056,664.76,664.11,2.22653437]
[1749505635151,1.04557955,664.75,664.1,2.22653437]
[1749505635344,1.04557955,664.75,664.11,2.22653437]
[1749505636150,1.04557955,664.75,664.06,2.22653437]
[1749505636552,1.04557955,664.75,664.07,2.22653437]
[1749505637051,1.04557955,664.75,664.06,2.22653437]
[1749505637350,1.04557955,664.75,664.07,2.22653437]
[1749505637548,1.595,664.74,664.07,2.22653437]
[1749505637748,1.595,664.74,663.99,2.22653437]
[1749505637948,2.64057955,664.74,663.99,2.22653437]
[1749505638151,1.04557955,664.73,663.99,2.22653437]
[1749505638448,1.17809722,664.73,663.98,2.22653437]
[1749505638645,3.81867677,664.74,663.98,2.22653437]
[1749505638949,1.04557955,664.73,663.97,2.22653437]
[1749505639450,1.1781869,664.73,663.98,2.22653437]
[1749505639652,3.81876645,664.74,663.97,2.22653437]
[1749505639847,1.04557955,664.73,663.97,2.22653437]
[1749505640452,1.595,664.74,663.98,2.22653437]
[1749505640650,1.44,664.72,663.96,2.22653437]
[1749505640953,1.44,664.72,663.95,2.22653437]
[1749505641651,1.44,664.72,663.96,2.22653437]
[1749505641954,3.66313028,664.72,663.96,2.22653437]
[1749505642255,1.04510318,664.71,663.95,2.22653437]
[1749505642551,1.04510318,664.71,663.96,2.22653437]
[1749505642748,1.44,664.72,663.95,2.22653437]
[1749505643050,1.445,664.71,663.95,2.22653437]
[1749505643249,2.49010318,664.71,663.95,2.22653437]
[1749505645356,1.17805779,664.7,663.92,2.22653437]
[1749505645556,2.22315994,664.7,663.93,2.22653437]
[1749505645761,1.17805724,664.69,663.92,2.22653437]
[1749505645961,2.22316042,664.7,663.92,2.22653437]
[1749505646261,1.04510318,664.7,663.93,2.22653437]
[1749505646458,3.6681657,664.71,663.93,2.22653437]
[1749505646661,1.04457925,664.7,663.93,2.22653437]
[1749505646956,0.995,664.69,663.93,2.22653437]
[1749505647457,2.17303016,664.69,663.96,2.22653437]
[1749505647763,2.22260941,664.68,663.95,2.22653437]
[1749505648162,1.04457925,664.68,663.95,2.22653437]
[1749505648362,1.04457925,664.68,663.96,2.22653437]
[1749505648561,3.21837717,664.69,663.96,2.22653437]
[1749505648858,2.22337908,664.68,663.95,2.22653437]
[1749505649163,1.04457925,664.68,663.94,2.22653437]
[1749505649563,3.21837941,664.69,663.94,2.22653437]
[1749505649762,3.70125906,664.68,663.62,2.22653437]
[1749505649964,1.04457925,664.67,663.72,2.22653437]
[1749505650260,2.16815804,664.66,663.73,2.22653437]
[1749505650464,3.83742737,664.65,663.73,2.22653437]
[1749505650664,3.70221716,664.64,663.71,2.22653437]
[1749505650865,2.71388219,664.63,663.71,2.22653437]
[1749505651071,2.71388219,664.62,663.7,2.22653437]
[1749505651373,3.70222646,664.61,663.7,2.22653437]
[1749505651567,0.995,664.69,663.7,2.22653437]
[1749505651568,3.70192037,664.6,663.7,2.22653437]
[1749505651764,2.22252637,664.59,663.68,2.22653437]
[1749505651970,2.52297125,664.58,663.58,2.22653437]
[1749505652171,1.12357879,664.53,663.39,2.22653437]
[1749505652467,1.34554837,664.52,663.4,2.22653437]
[1749505652671,1.04457925,664.51,663.34,2.22653437]
[1749505652872,1.04457925,664.5,663.35,2.22653437]
[1749505653074,1.04457925,664.49,663.35,2.22653437]
[1749505653272,1.04457925,664.51,663.36,2.22653437]
[1749505653572,1.04457925,664.5,663.36,2.22653437]
[1749505653768,1.12357879,664.45,663.36,2.22653437]
[1749505653973,3.64309173,664.48,663.41,2.22653437]
[1749505654172,1.17529257,664.47,663.41,2.22653437]
[1749505654369,1.12357879,664.46,663.45,2.22653437]
[1749505654573,1.04457925,664.45,663.37,2.22653437]
[1749505654768,1.12357879,664.34,663.3,0.26204622]
[1749505655072,1.04457925,664.33,663.1,2.22653437]
[1749505655368,1.04457925,664.32,663.19,0.26214294]
[1749505655567,3.69532194,664.34,663.19,0.26214294]
[1749505655768,4.81893883,664.33,663.19,0.26214294]
[1749505656067,3.69541997,664.32,663.19,0.26214294]
[1749505656269,3.69541997,664.31,663.19,0.56371564]
[1749505656467,3.69411333,664.3,663.19,0.56371564]
[1749505656671,1.743,664.32,663.19,0.56371564]
[1749505656672,3.20637494,664.29,663.19,0.56371564]
[1749505656874,3.19987455,664.28,663.19,0.56371564]
[1749505657073,1.04457925,664.27,663.19,0.56371564]
[1749505657271,3.19983875,664.31,663.19,0.56371564]
[1749505657471,2.2163238,664.3,663.24,2.22653437]
[1749505657669,2.21630614,664.29,663.25,2.52807979]
[1749505657871,2.21630631,664.28,663.26,0.30154087]
[1749505658070,1.04457925,664.27,663.26,0.30154087]
[1749505658374,2.21624586,664.31,663.26,0.30154087]
[1749505658569,1.04457925,664.31,663.26,0.30154087]
[1749505658769,1.743,664.32,663.26,0.30154087]
[1749505661875,3.95651669,664.32,663.26,0.30154087]
[1749505662170,1.04457925,664.31,663.26,0.30154087]
[1749505662876,1.743,664.32,663.26,0.30154087]
[1749505663871,1.748,664.31,663.26,0.30154087]
[1749505664075,2.79257925,664.31,663.26,0.30154087]
[1749505665372,1.094,664.3,663.26,0.30154087]
[1749505665575,2.13857925,664.3,663.26,0.30154087]
[1749505667374,1.531,664.29,663.26,0.30154087]
[1749505667573,2.57557925,664.29,663.26,0.30154087]
[1749505672879,1.541,664.28,663.26,0.30154087]
[1749505673078,2.58606871,664.28,663.26,0.30154087]
[1749505675584,1.524,664.27,663.26,0.30154087]
[1749505675879,2.56906871,664.27,663.26,0.30154087]
[1749505676480,0.995,664.26,663.26,0.30154087]
[1749505676683,2.04006871,664.26,663.26,0.30154087]
[1749505688185,1.16176394,664.25,663.26,0.30154087]
[1749505688389,2.20683265,664.25,663.26,0.30154087]
[1749505688689,1.04506871,664.25,663.26,0.30154087]
[1749505688889,3.20183552,664.26,663.26,0.30154087]
[1749505689190,2.2068405,664.25,663.26,0.30154087]
[1749505689387,3.3338405,664.25,663.26,0.30154087]
[1749505689587,1.04506871,664.24,663.26,0.30154087]
[1749505689890,2.17206871,664.25,663.26,0.30154087]
[1749505691794,1.04506871,664.24,663.26,0.30154087]
[1749505691994,1.512,664.24,663.26,0.30154087]
[1749505692395,2.55706871,664.24,663.26,0.30154087]
[1749505694095,1.169,664.23,663.26,0.30154087]
[1749505694398,2.21406871,664.23,663.26,0.30154087]
[1749505694599,0.996,664.22,663.26,0.30154087]
[1749505694799,2.04106871,664.22,663.26,0.30154087]
[1749505701403,1.665,664.21,663.26,0.30154087]
[1749505701599,2.71006871,664.21,663.26,0.30154087]
[1749505703604,2.71006871,664.21,663.27,2.22653437]
[1749505704502,2.71006871,664.21,663.28,2.22653437]
[1749505704801,2.71006871,664.21,663.3,2.22653437]
[1749505705102,2.71006871,664.21,663.31,2.22653437]
[1749505705305,2.71006871,664.21,663.32,2.22653437]